bitfinex-derivatives/quotes_BNBF0:USTF0_20250424
["timestamp","ask_amount","ask_price","bid_price","bid_amount"]
[1745485894071,1.22371545,597.54,595.77,0.91698241]
[1745485894270,1.22371545,597.54,595.78,0.91698241]
[1745485894474,1.22371545,597.54,595.79,0.91698241]
[1745485894669,0.2916967,597.53,595.8,0.91698241]
[1745485894871,0.2916967,597.53,595.81,0.91698241]
[1745485895169,0.2916967,597.53,595.82,0.91705207]
[1745485895369,0.2916967,597.53,595.83,0.60908385]
[1745485895571,0.2916967,597.53,595.84,0.30796822]
[1745485895775,0.2916967,597.53,595.85,0.60908385]
[1745485895975,0.2916967,597.53,595.86,0.30796822]
[1745485896277,1.22371545,597.54,595.87,0.60908385]
[1745485896474,0.29168692,597.52,595.88,0.30796822]
[1745485896674,0.29168692,597.52,595.89,0.60908385]
[1745485896871,1.22371545,597.5,595.9,0.30796822]
[1745485897072,1.22371545,597.5,595.91,0.60908385]
[1745485897274,1.22371545,597.5,595.92,0.30796822]
[1745485897471,1.22371545,597.5,595.93,0.60908385]
[1745485897673,1.22371545,597.5,595.94,0.30796822]
[1745485897879,1.22371545,597.5,595.95,0.91708208]
[1745485898173,1.22371545,597.5,595.96,0.91708208]
[1745485898377,1.22371545,597.5,595.97,0.91708208]
[1745485898678,1.22371545,597.5,595.98,0.91708208]
[1745485898879,1.22371545,597.5,595.99,0.91717976]
[1745485899072,1.22371545,597.5,596.0,0.91717976]
[1745485899273,1.22371545,597.5,596.01,0.91717976]
[1745485899477,1.22371545,597.5,596.02,0.91717976]
[1745485899676,1.22371545,597.5,596.03,0.91717976]
[1745485899877,0.29168692,597.52,596.04,0.91717976]
[1745485900074,0.29168692,597.52,596.05,0.91717976]
[1745485900278,0.29168692,597.52,596.06,0.91717976]
[1745485900478,0.29168692,597.52,596.07,0.91717976]
[1745485900678,0.29168692,597.52,596.08,0.91709216]
[1745485900878,0.29168692,597.52,596.09,0.91709216]
[1745485901079,0.29168692,597.52,596.1,0.91705891]
[1745485901271,0.29168692,597.52,596.11,0.91705891]
[1745485901479,0.29168692,597.52,596.12,0.91705891]
[1745485901674,0.29168692,597.52,596.13,0.91705891]
[1745485901975,0.29168692,597.52,596.14,0.91705891]
[1745485902176,0.29168692,597.52,596.15,0.91705891]
[1745485902377,0.219,597.55,596.16,0.91705891]
[1745485902575,0.219,597.55,596.17,0.60903444]
[1745485902776,0.219,597.55,596.18,0.91699527]
[1745485902979,0.219,597.55,596.19,0.91699527]
[1745485903176,0.219,597.55,596.2,0.91699527]
[1745485903479,0.219,597.55,595.84,1.165]
[1745485903681,0.29161482,597.54,595.91,0.2916136]
[1745485903876,0.29161482,597.54,595.92,0.91697835]
[1745485904082,0.29161482,597.54,595.93,0.91697835]
[1745485904278,0.29161482,597.54,595.94,0.60901396]
[1745485904475,0.29161482,597.54,595.95,0.91697258]
[1745485904679,0.29161482,597.54,595.96,0.91697258]
[1745485904882,0.962,597.57,595.97,0.91697258]
[1745485905082,0.962,597.57,595.98,0.91697258]
[1745485905279,0.962,597.57,595.99,0.60901396]
[1745485905480,0.962,597.57,596.0,0.91697258]
[1745485905678,0.962,597.57,596.01,0.91697258]
[1745485905877,0.962,597.57,596.02,0.60901396]
[1745485906081,0.962,597.57,596.03,0.91680935]
[1745485906283,0.962,597.57,596.04,0.91680935]
[1745485906482,0.962,597.57,596.05,0.91680935]
[1745485906678,0.962,597.57,596.06,0.91680935]
[1745485906882,1.181,597.57,596.07,0.91680935]
[1745485907082,1.181,597.57,596.08,0.91680935]
[1745485907382,1.181,597.57,596.09,0.91680935]
[1745485907583,1.181,597.57,596.1,0.91674186]
[1745485907784,1.181,597.57,596.11,0.91674186]
[1745485907983,1.181,597.57,596.12,0.91674186]
[1745485908181,1.181,597.57,596.13,0.91674186]
[1745485908385,1.181,597.57,596.14,0.91674186]
[1745485908586,1.181,597.57,596.15,0.91674186]
[1745485908786,1.181,597.57,596.16,0.91674186]
[1745485909089,1.181,597.57,596.17,0.91674186]
[1745485909281,1.181,597.57,596.18,0.91674186]
[1745485909479,1.181,597.57,596.19,0.91674186]
[1745485909688,1.181,597.57,596.2,0.91674186]
[1745485909881,1.181,597.57,596.21,0.91369881]
[1745485910185,1.181,597.57,596.22,0.91369881]
[1745485910385,1.181,597.57,596.23,0.91369881]
[1745485910582,1.181,597.57,596.24,0.91369881]
[1745485910782,1.181,597.57,596.25,0.91369881]
[1745485910989,1.181,597.57,596.26,0.91369881]
[1745485911188,1.181,597.57,596.27,0.91369881]
[1745485911387,1.181,597.57,596.28,0.91369881]
[1745485911589,1.181,597.57,596.29,0.91369881]
[1745485911788,1.181,597.57,596.3,0.91369881]
[1745485911989,1.181,597.57,596.31,0.91369881]
[1745485912183,1.181,597.57,596.32,0.91369881]
[1745485912386,1.181,597.57,596.33,0.60597091]
[1745485912584,1.181,597.57,596.33,0.30781743]
[1745485912786,1.181,597.57,596.34,0.30781743]
[1745485912984,1.181,597.57,596.16,0.30781743]
[1745485913188,1.181,597.57,596.17,0.60559484]
[1745485913489,1.181,597.57,596.18,0.91341227]
[1745485913688,1.181,597.57,596.19,0.30781743]
[1745485913888,1.181,597.57,596.15,1.16]
[1745485914088,1.181,597.57,596.16,0.30792495]
[1745485914889,1.181,597.57,596.17,0.60556677]
[1745485915086,1.181,597.57,596.18,0.91344082]
[1745485915290,1.181,597.57,596.19,0.60556677]
[1745485915489,1.181,597.57,596.2,0.60556677]
[1745485915784,1.181,597.57,596.21,0.60556677]
[1745485915990,1.181,597.57,596.22,0.60556677]
[1745485916190,1.181,597.57,596.23,0.60556677]
[1745485916390,1.181,597.57,596.24,0.60556677]
[1745485916590,1.181,597.57,596.25,0.60556677]
[1745485916891,1.181,597.57,596.26,0.60556677]
[1745485917087,1.181,597.57,596.18,0.809]
[1745485917292,1.181,597.57,596.19,0.91324382]
[1745485917592,0.29156717,597.56,596.2,0.91324382]
[1745485917785,0.29156717,597.56,596.21,0.91324382]
[1745485917985,0.29156717,597.56,596.22,0.91324382]
[1745485918289,0.29156717,597.56,596.23,0.91324382]
[1745485918486,0.29156717,597.56,596.24,0.91324382]
[1745485918689,0.29156717,597.56,596.25,0.60538443]
[1745485918992,0.219,597.57,596.26,0.91320261]
[1745485919186,0.219,597.57,596.27,0.91320261]
[1745485919386,0.219,597.57,596.28,0.91320261]
[1745485919585,0.219,597.57,596.29,0.91320261]
[1745485919788,0.219,597.57,596.3,0.91320261]
[1745485919991,0.219,597.57,596.31,0.91320261]
[1745485920291,0.219,597.57,596.32,0.91320261]
[1745485920488,0.219,597.57,596.33,0.91320261]
[1745485920793,0.219,597.57,596.34,0.91320261]
[1745485920992,0.219,597.57,596.34,0.30781818]
[1745485921187,1.016,597.57,596.35,0.30781818]
[1745485921388,1.016,597.57,596.22,0.30781818]
[1745485921593,1.016,597.57,596.23,0.91284903]
[1745485921891,1.016,597.57,596.24,0.91284903]
[1745485922093,1.016,597.57,596.25,0.91284903]
[1745485922293,1.016,597.57,596.26,0.91284903]
[1745485922494,1.016,597.57,596.27,0.91284903]
[1745485922695,1.016,597.57,596.28,0.91284903]
[1745485922894,1.016,597.57,596.29,0.91284903]
[1745485923095,1.016,597.57,596.3,0.60505371]
[1745485923395,1.016,597.57,596.31,0.91285413]
[1745485923595,1.016,597.57,596.32,0.91285413]
[1745485923797,1.016,597.57,596.33,0.91285413]
[1745485923998,1.016,597.57,596.34,0.91285413]
[1745485924193,1.016,597.57,596.35,0.91249241]
[1745485924393,1.016,597.57,596.36,0.30780042]
[1745485924598,1.016,597.57,596.3,0.30780042]
[1745485924797,1.016,597.57,596.31,0.91242284]
[1745485925095,1.016,597.57,596.32,0.91242284]
[1745485925396,1.016,597.57,596.33,0.91242284]
[1745485925596,1.016,597.57,596.34,0.91242284]
[1745485925796,1.016,597.57,596.35,0.30780042]
[1745485926096,1.016,597.57,596.36,0.9123305]
[1745485926296,1.016,597.57,596.37,0.9123305]
[1745485926496,1.016,597.57,596.38,0.30780042]
[1745485926697,1.016,597.57,596.3,0.30780042]
[1745485926892,1.016,597.57,596.31,0.91226926]
[1745485927096,1.016,597.57,596.32,0.91226926]
[1745485927396,1.016,597.57,596.33,1.87926926]
[1745485927599,1.016,597.57,596.34,0.91226926]
[1745485927798,1.016,597.57,596.35,0.91222675]
[1745485928002,1.016,597.57,596.36,0.91222675]
[1745485928198,1.016,597.57,596.37,0.91221689]
[1745485928494,1.016,597.57,596.38,0.30780042]
[1745485928698,1.016,597.57,596.34,0.30780042]
[1745485928897,1.016,597.57,596.35,0.91217753]
[1745485929096,1.016,597.57,596.36,0.91217753]
[1745485929297,1.016,597.57,596.37,0.30780042]
[1745485929597,1.016,597.57,596.33,0.967]
[1745485929798,1.016,597.57,596.34,0.91215282]
[1745485930001,1.016,597.57,596.35,0.912152]
[1745485930199,1.016,597.57,596.36,0.30779102]
[1745485930401,1.016,597.57,596.34,0.30779102]
[1745485930801,1.016,597.57,596.33,0.967]
[1745485935907,0.29158061,597.56,596.33,0.967]
[1745485938409,1.22371545,597.98,596.33,0.967]
[1745485938608,0.219,597.55,596.33,0.967]
[1745485938812,0.219,597.55,596.34,0.6054664]
[1745485939005,0.219,597.55,596.33,0.967]
[1745485939311,0.219,597.55,596.34,0.60545028]
[1745485939510,0.219,597.55,596.35,0.6055614]
[1745485939809,0.219,597.55,596.36,0.60554826]
[1745485940010,0.219,597.55,596.37,0.60554826]
[1745485940208,0.219,597.55,596.33,0.967]
[1745485940508,0.219,597.55,596.34,0.60553948]
[1745485940710,0.219,597.55,596.35,0.60553948]
[1745485940908,0.219,597.55,596.36,0.60553948]
[1745485941110,0.219,597.55,596.37,0.91333603]
[1745485941405,0.219,597.55,596.38,0.91333603]
[1745485941606,0.219,597.55,596.39,0.91333603]
[1745485941809,0.219,597.55,596.4,0.91333603]
[1745485942010,0.219,597.55,596.41,0.91333603]
[1745485942311,0.219,597.55,596.42,0.91333603]
[1745485942511,0.219,597.55,596.43,0.9135328]
[1745485942711,0.219,597.55,596.44,0.9135328]
[1745485943011,0.219,597.55,596.45,0.9135328]
[1745485943211,0.219,597.55,596.46,0.9135328]
[1745485943413,0.219,597.55,596.47,0.9135328]
[1745485943613,0.219,597.55,596.48,0.30779655]
[1745485943813,0.219,597.55,596.34,0.30779655]
[1745485944108,0.219,597.55,596.35,0.91353786]
[1745485944312,0.219,597.55,596.33,0.967]
[1745485944313,0.219,597.55,596.36,0.91353786]
[1745485944514,0.219,597.55,596.37,0.91353786]
[1745485944713,0.219,597.55,596.38,0.91353786]
[1745485944910,0.219,597.55,596.39,0.91353786]
[1745485945116,0.219,597.55,596.4,0.91353786]
[1745485945308,0.219,597.55,596.41,0.91353786]
[1745485945509,0.219,597.55,596.42,0.91353786]
[1745485945722,0.219,597.55,596.43,0.91353786]
[1745485945914,0.219,597.55,596.44,0.60574131]
[1745485946118,0.219,597.55,596.45,0.91349859]
[1745485946318,0.219,597.55,596.46,0.30775728]
[1745485946514,0.219,597.55,596.4,0.74]
[1745485949522,0.219,597.55,596.41,0.60582422]
[1745485949723,0.219,597.55,596.42,0.60582422]
[1745485949923,0.219,597.55,596.43,0.60582422]
[1745485950118,0.219,597.55,596.44,0.60582422]
[1745485950317,0.219,597.55,596.45,0.60582422]
[1745485950518,0.219,597.55,596.4,0.74]
[1745485950817,0.219,597.55,596.41,0.60585737]
[1745485951017,0.219,597.55,596.42,0.60585737]
[1745485951219,0.219,597.55,596.4,0.74]
[1745485954624,0.219,597.55,596.41,0.30781014]
[1745485955125,0.219,597.55,596.4,0.74]
[1745485956126,0.219,597.55,596.41,0.91433207]
[1745485956425,0.219,597.55,596.42,0.91450107]
[1745485956624,0.219,597.55,596.43,0.91450107]
[1745485956825,0.219,597.55,596.44,0.91450107]
[1745485957026,0.219,597.55,596.45,0.91450107]
[1745485957222,0.219,597.55,596.46,0.91450107]
[1745485957420,0.219,597.55,596.47,0.91450107]
[1745485957621,0.219,597.55,596.48,0.60669881]
[1745485957819,0.219,597.55,596.4,0.74]
[1745485958020,0.219,597.55,596.41,0.91459003]
[1745485958225,0.219,597.55,596.42,0.91459003]
[1745485958421,0.219,597.55,596.43,0.91459003]
[1745485958620,0.219,597.55,596.44,0.91473288]
[1745485958826,0.219,597.55,596.45,0.60696174]
[1745485959027,0.219,597.55,596.46,0.91472642]
[1745485959220,0.219,597.55,596.47,0.91472642]
[1745485959422,0.219,597.55,596.48,0.91472642]
[1745485959625,0.219,597.55,596.49,0.60696174]
[1745485959824,0.219,597.55,596.5,0.60696174]
[1745485960025,0.219,597.55,596.51,0.60696174]
[1745485960222,0.219,597.55,596.52,0.60696174]
[1745485960522,0.219,597.55,596.53,0.60696174]
[1745485960727,0.219,597.55,596.43,0.742]
[1745485960928,0.219,597.55,596.44,0.60715804]
[1745485961126,0.219,597.55,596.45,0.60715804]
[1745485961326,0.219,597.55,596.46,0.60715804]
[1745485961527,0.219,597.55,596.47,0.60715804]
[1745485961728,0.29143044,597.73,596.48,0.60715804]
[1745485961926,0.29143044,597.73,596.49,0.60715804]
[1745485962227,0.29143044,597.73,596.5,0.60715804]
[1745485962428,0.843,597.97,596.51,0.60715804]
[1745485962628,0.843,597.97,596.52,0.60715804]
[1745485962823,0.29143288,597.73,596.53,0.60715804]
[1745485963025,0.843,597.97,596.54,0.60715804]
[1745485963226,0.843,597.97,596.45,1.122]
[1745485963424,0.843,597.97,596.46,0.60748752]
[1745485963623,0.843,597.97,596.47,0.60748752]
[1745485963925,0.843,597.97,596.45,1.122]
[1745485963926,1.22371545,598.54,596.48,0.60748752]
[1745485964125,1.22371545,598.54,596.49,0.60748752]
[1745485964326,0.29136578,598.53,596.5,0.60748752]
[1745485964524,0.29136578,598.53,596.51,0.60748752]
[1745485964726,0.29136578,598.53,596.52,0.60748752]
[1745485964925,0.29136578,598.53,596.53,0.60748752]
[1745485965128,0.29136578,598.53,596.54,0.60748752]
[1745485965328,1.22371545,598.54,596.55,0.60748752]
[1745485965525,1.22371545,598.54,596.56,0.60784101]
[1745485965730,0.29135846,598.52,596.52,0.742]
[1745485965927,0.29135846,598.52,596.53,0.60784738]
[1745485966228,0.29135846,598.52,596.54,0.60786341]
[1745485966429,0.29135846,598.52,596.55,0.60797041]
[1745485966728,0.29135846,598.52,596.56,0.6079704]
[1745485966929,0.29135846,598.52,596.54,1.088]
[1745485967129,0.29135846,598.52,596.55,0.60796006]
[1745485967326,0.29135846,598.52,596.56,0.60796006]
[1745485967525,0.29135846,598.52,596.54,1.088]
[1745485967726,1.074,598.51,596.55,0.60801146]
[1745485967928,1.074,598.51,596.56,0.60801146]
[1745485968130,1.074,598.51,596.54,1.088]
[1745485968330,1.074,598.51,596.55,0.6080122]
[1745485968526,0.29136944,598.5,596.56,0.6080122]
[1745485968728,0.29136944,598.5,596.54,1.088]
[1745485968931,0.29136944,598.5,596.55,0.60801238]
[1745485969127,0.29136944,598.5,596.56,0.60801238]
[1745485969330,0.29136944,598.5,596.54,1.088]
[1745485969632,0.29136944,598.5,596.55,0.60802021]
[1745485969826,0.29136944,598.5,596.56,0.60802021]
[1745485970031,0.29136944,598.5,596.54,1.088]
[1745485970230,0.29136944,598.5,596.55,0.60801025]
[1745485970427,0.29136944,598.5,596.56,0.60801025]
[1745485970633,0.29136944,598.5,596.54,1.088]
[1745485970829,0.29136944,598.5,596.55,0.60797131]
[1745485971033,0.29136944,598.5,596.56,0.91571698]
[1745485971333,1.074,598.51,596.57,0.60797131]
[1745485971531,1.22371545,598.22,596.54,1.088]
[1745485971928,1.22371545,598.22,596.55,0.30774189]
[1745485972532,0.29139017,598.21,596.55,0.30774189]
[1745485973331,0.29139017,598.21,596.54,1.088]
[1745485973537,1.22371545,598.19,596.55,0.30775105]
[1745485975538,0.29139383,598.18,596.55,0.30775105]
[1745485976037,1.22371545,598.01,596.55,0.30775105]
[1745485977539,0.29139627,598.0,596.55,0.30775105]
[1745485978439,1.22371545,597.97,596.55,0.30775105]
[1745485978738,1.22371545,597.97,596.56,0.60792776]
[1745485978940,1.22371545,597.97,596.57,0.91567881]
[1745485979137,1.22371545,597.97,596.58,0.91567881]
[1745485979335,1.22371545,597.97,596.54,1.088]
[1745485980538,0.29145729,597.96,596.54,1.088]
[1745485983238,1.22371545,598.14,596.54,1.088]
[1745485983539,0.2914402,597.95,596.54,1.088]
[1745485983839,1.22371545,598.14,596.54,1.088]
[1745485984238,1.22371545,598.13,596.54,1.088]
[1745485984535,1.51516663,598.13,596.54,1.088]
[1745485985942,0.219,598.12,596.54,1.088]
[1745485986940,1.22371545,597.92,596.54,1.088]
[1745485989939,1.22371545,597.87,596.54,1.088]
[1745485990641,0.29151344,597.86,596.54,1.088]
[1745485992243,1.22371545,597.87,596.54,1.088]
[1745485992539,0.29149879,597.85,596.54,1.088]
[1745485995345,0.219,598.12,596.54,1.088]
[1745485995845,0.29147804,597.84,596.54,1.088]
[1745485996140,0.219,598.12,596.54,1.088]
[1745485996646,1.21547804,598.11,596.54,1.088]
[1745485997144,1.21547804,598.11,596.54,1.824]
[1745485998349,0.924,598.11,596.54,1.824]
[1745485999648,0.29147193,598.1,596.54,1.824]
[1745486000549,0.219,598.09,596.54,1.824]
[1745486001750,0.29148902,598.08,596.54,1.824]
[1745486001946,1.22371545,597.87,596.54,1.824]
[1745486004551,1.22371545,598.02,596.54,1.824]
[1745486005652,0.29154153,598.01,596.54,1.824]
[1745486007546,1.22371545,597.96,596.54,1.824]
[1745486010152,1.22371545,597.99,596.54,1.824]
[1745486010753,0.29150611,597.98,596.54,1.824]
[1745486016053,0.29150611,597.98,596.54,2.515]
[1745486016355,0.219,598.09,596.54,3.57]
[1745486016556,0.29150367,597.97,596.54,3.57]
[1745486016854,0.924,598.11,596.54,3.57]
[1745486017550,0.29150367,598.1,596.54,3.57]
[1745486019356,0.924,598.11,596.54,3.57]
[1745486019557,0.22,598.09,596.54,3.57]
[1745486020354,1.22371545,598.06,596.54,3.57]
[1745486023060,0.22,598.09,596.54,3.57]
[1745486023563,0.29144508,598.08,596.54,3.57]
[1745486025668,1.31744508,598.08,596.54,3.57]
[1745486026263,1.22371545,597.79,596.54,3.57]
[1745486029570,0.29148414,597.78,596.54,3.57]
[1745486034281,1.22371545,598.07,596.54,3.57]
[1745486034679,0.29147804,597.77,596.54,3.57]
[1745486034975,1.22371545,598.07,596.54,3.57]
[1745486035582,0.29147926,598.06,596.54,3.57]
[1745486037482,1.026,598.08,596.54,3.57]
[1745486037681,0.29146583,598.05,596.54,3.57]
[1745486040384,1.026,598.08,596.54,3.57]
[1745486041684,0.2914878,598.07,596.54,3.57]
[1745486043388,1.026,598.08,596.54,3.57]
[1745486044585,0.29148048,598.07,596.54,3.57]
[1745486046386,1.026,598.08,596.54,3.57]
[1745486047689,0.29148048,598.07,596.54,3.57]
[1745486051293,0.51148048,598.07,596.54,3.57]
[1745486053097,1.2547349,597.72,596.54,3.57]
[1745486055493,0.51148048,598.07,596.54,3.57]
[1745486056993,1.25848048,598.07,596.54,3.57]
[1745486058390,0.967,598.07,596.54,3.57]
[1745486059598,0.29146705,598.06,596.54,3.57]
[1745486061295,0.967,598.07,596.54,3.57]
[1745486061602,0.29146705,598.05,596.54,3.57]
[1745486064501,0.967,598.07,596.54,3.57]
[1745486065602,0.29146705,598.06,596.54,3.57]
[1745486068906,1.25754466,598.05,596.54,3.57]
[1745486071610,0.29146949,598.04,596.54,3.57]
[1745486073406,1.25754466,598.05,596.54,3.57]
[1745486074112,1.25754466,598.01,596.54,3.57]
[1745486074612,0.29147437,598.0,596.54,3.57]
[1745486075911,0.22,597.99,596.54,3.57]
[1745486076712,1.25754466,597.97,596.54,3.57]
[1745486077711,0.29147926,597.96,596.54,3.57]
[1745486079114,1.25754466,597.9,596.54,3.57]
[1745486080713,0.29150245,597.89,596.54,3.57]
[1745486082110,1.25754466,597.85,596.54,3.57]
[1745486083714,0.29149391,597.84,596.54,3.57]
[1745486085316,1.25754466,597.85,596.54,3.57]
[1745486085613,0.29149391,597.83,596.54,3.57]
[1745486088320,0.743,597.88,596.54,3.57]
[1745486089622,0.29148536,597.87,596.54,3.57]
[1745486091327,0.743,597.88,596.54,3.57]
[1745486091628,0.29145851,597.86,596.54,3.57]
[1745486094431,0.22,597.99,596.54,3.57]
[1745486094626,0.29145851,597.85,596.54,3.57]
[1745486094930,0.22,597.99,596.54,3.57]
[1745486095132,1.25754466,598.21,596.54,3.57]
[1745486095633,0.29141824,598.2,596.54,3.57]
[1745486097038,1.37241824,598.2,596.54,3.57]
[1745486097338,1.081,598.2,596.54,3.57]
[1745486098737,0.29143288,598.19,596.54,3.57]
[1745486099037,0.51143288,598.19,596.54,3.57]
[1745486100334,0.22,598.19,596.54,3.57]
[1745486101635,0.29144874,598.18,596.54,3.57]
[1745486102240,0.22,598.19,596.54,3.57]
[1745486103041,1.25754466,597.86,596.54,3.57]
[1745486105741,1.25754466,597.79,596.54,3.57]
[1745486108538,1.25754466,597.95,596.54,3.57]
[1745486110645,0.29144508,597.94,596.54,3.57]
[1745486110843,0.29144508,597.94,596.55,0.60931993]
[1745486111037,0.29144508,597.94,596.56,0.60931993]
[1745486111241,0.29144508,597.94,596.28,0.29143898]
[1745486111442,0.29144508,597.94,596.29,0.91694651]
[1745486111639,0.29144508,597.94,596.3,0.91694651]
[1745486111844,0.29144508,597.94,596.31,0.91694651]
[1745486112043,0.29144508,597.94,596.32,0.91694651]
[1745486112239,0.29144508,597.94,596.33,0.91694651]
[1745486112439,0.22,598.19,596.34,0.91694651]
[1745486112643,0.22,598.19,596.35,0.91694651]
[1745486112843,0.22,598.19,596.36,0.91694651]
[1745486113042,0.22,598.19,596.37,0.91694651]
[1745486113241,0.22,598.19,596.38,0.91694651]
[1745486113445,0.22,598.19,596.39,0.30776382]
[1745486113646,0.29141946,598.18,596.4,0.60897487]
[1745486113844,0.29141946,598.18,596.41,0.91673869]
[1745486114041,0.29141946,598.18,596.42,0.91673869]
[1745486114241,0.29141946,598.18,596.43,0.91673869]
[1745486114547,0.29141946,598.18,596.44,0.91673869]
[1745486114843,0.29141946,598.18,596.45,0.60897487]
[1745486115043,1.25754466,598.16,596.46,0.60897487]
[1745486115242,1.25754466,598.16,596.47,0.91672383]
[1745486115441,1.25754466,598.16,596.48,0.91672383]
[1745486115648,1.25754466,598.16,596.49,0.91672383]
[1745486115843,1.25754466,598.16,596.5,0.91672383]
[1745486116046,1.25754466,598.16,596.51,0.91657364]
[1745486116247,1.25754466,598.16,596.52,0.91657364]
[1745486116447,1.25754466,598.16,596.53,0.30774896]
[1745486116746,0.29140847,598.15,596.54,0.30774862]
[1745486116947,0.29140847,598.15,596.38,0.30774862]
[1745486117140,0.29140847,598.15,596.39,0.91651759]
[1745486117342,0.29140847,598.15,596.4,0.91651759]
[1745486117547,1.25754466,598.07,596.41,0.91651759]
[1745486117749,1.25754466,598.07,596.42,0.91651759]
[1745486117947,1.25754466,598.07,596.43,0.91651759]
[1745486118142,1.25754466,598.07,596.44,0.60876897]
[1745486118346,1.25754466,598.07,596.45,0.91651759]
[1745486118643,1.25754466,598.07,596.46,0.91651759]
[1745486118949,1.25754466,598.07,596.47,0.30774862]
[1745486119148,1.25754466,598.07,596.48,0.60861029]
[1745486119351,1.25754466,598.07,596.49,0.91635891]
[1745486119545,1.25754466,598.07,596.5,0.91635891]
[1745486119745,0.29144142,598.06,596.51,0.30774862]
[1745486119948,0.29144142,598.06,596.36,0.29144386]
[1745486120149,0.221,598.05,596.37,0.91637428]
[1745486120346,0.221,598.05,596.38,0.91637428]
[1745486120552,0.221,598.05,596.39,0.91637428]
[1745486120850,0.221,598.05,596.4,0.91639297]
[1745486121050,0.221,598.05,596.41,0.91639297]
[1745486121250,0.221,598.05,596.36,0.29144386]
[1745486121251,0.221,598.05,596.42,0.30778401]
[1745486121450,0.221,598.05,596.37,0.30778401]
[1745486121651,0.221,598.05,596.38,0.60861876]
[1745486121945,0.221,598.05,596.39,0.91640277]
[1745486122152,0.221,598.05,596.4,0.91640277]
[1745486122349,0.221,598.05,596.41,0.91640277]
[1745486122547,0.221,598.05,596.42,0.91640277]
[1745486122749,0.221,598.05,596.43,0.91640277]
[1745486122947,0.221,598.05,596.44,0.91640277]
[1745486123154,0.221,598.05,596.45,0.91640277]
[1745486123352,0.221,598.05,596.46,0.91640277]
[1745486123552,0.221,598.05,596.47,0.91640277]
[1745486123753,0.221,598.05,596.48,0.60861876]
[1745486123951,0.221,598.05,596.49,0.91640277]
[1745486124155,0.829,598.04,596.5,0.60861876]
[1745486124355,0.829,598.04,596.51,0.60861876]
[1745486124553,0.829,598.04,596.52,0.60861876]
[1745486124858,0.829,598.04,596.01,0.70999938]
[1745486125056,0.829,598.04,596.09,0.91639324]
[1745486125257,0.829,598.04,596.1,0.91639324]
[1745486125457,0.829,598.04,596.11,0.91639324]
[1745486125756,0.29149146,598.03,596.12,0.91639324]
[1745486126057,0.29149146,598.03,596.13,0.91639324]
[1745486126357,0.29149146,598.03,596.14,0.91639324]
[1745486126551,0.29149146,598.03,596.15,0.91639324]
[1745486126752,0.29149146,598.03,596.16,0.91639324]
[1745486126955,0.29149146,598.03,596.17,0.91639324]
[1745486127155,0.29149146,598.03,596.18,0.91639324]
[1745486127351,0.829,598.04,596.19,0.91639324]
[1745486127657,0.2914817,598.02,596.2,0.91639324]
[1745486127856,0.2914817,598.02,596.21,0.91639324]
[1745486128057,0.2914817,598.02,596.22,0.91639324]
[1745486128359,0.2914817,598.02,596.23,0.91639324]
[1745486128559,0.2914817,598.02,596.24,0.91639324]
[1745486128752,0.2914817,598.02,596.25,0.91639324]
[1745486128953,0.2914817,598.02,596.26,0.91639324]
[1745486129159,0.2914817,598.02,596.27,0.91639324]
[1745486129359,0.2914817,598.02,596.28,0.91639324]
[1745486129556,0.2914817,598.02,596.29,0.91639324]
[1745486129754,0.2914817,598.02,596.3,0.60860387]
[1745486129957,0.2914817,598.02,596.31,0.60860387]
[1745486130159,0.2914817,598.02,596.32,0.60860387]
[1745486130458,0.829,598.04,596.33,0.60860387]
[1745486130658,0.829,598.04,596.34,0.60860387]
[1745486130957,0.829,598.04,596.35,0.60860387]
[1745486131158,0.829,598.04,596.36,0.60860387]
[1745486131354,0.829,598.04,596.37,0.60860387]
[1745486131557,0.829,598.04,596.38,0.60860387]